fUST/lending_fUST_20250207
["ID","MTS","AMOUNT","RATE_DAILY","PERIOD"]
[352038658,1738894242242,-249.863142,0.00014245,2]
[352038660,1738894242252,-249.863142,0.00014245,2]
[352038663,1738894242262,-500.0,0.00014245,2]
[352038665,1738894242271,-460.05551602,0.00014246,2]
[352038666,1738894242282,-168.456412,0.00014246,2]
[352038668,1738894242291,-151.0,0.00014246,2]
[352038671,1738894242301,-151.0,0.00014246,2]
[352038673,1738894242311,-619.4,0.00014246,2]
[352038675,1738894242320,-191.363553,0.00014246,2]
[352038677,1738894242330,-191.363553,0.00014246,2]
[352038679,1738894242340,-500.0,0.00014246,2]
[352038681,1738894242349,-440.142385,0.00014246,2]
[352038683,1738894242358,-440.142385,0.00014246,2]
[352038685,1738894242368,-520.01641733,0.00014246,2]
[352038687,1738894242378,-151.0,0.00014246,2]
[352038689,1738894242387,-151.261311,0.00014246,2]
[352038690,1738894242397,-1056.9,0.00014246,2]
[352038692,1738894242406,-457.9701373,0.00014246,2]
[352038695,1738894242418,-500.0,0.00014246,2]
[352038697,1738894242429,-756.380816,0.00014246,2]
[352038699,1738894242438,-756.380816,0.00014246,2]
[352038701,1738894242447,-151.0,0.00014246,2]
[352038704,1738894242457,-151.0,0.00014246,2]
[352038707,1738894242466,-500.0,0.00014246,2]
[352038709,1738894242475,-151.0,0.00014246,2]
[352038712,1738894242485,-151.0,0.00014246,2]
[352038715,1738894242494,-151.78068,0.00014246,2]
[352038718,1738894242504,-500.0,0.00014246,2]
[352038720,1738894242513,-569.82,0.00014246,2]
[352038722,1738894242523,-151.0,0.00014246,2]
[352038724,1738894242532,-151.0,0.00014246,2]
[352038726,1738894242541,-155.417038,0.00014246,2]
[352038728,1738894242550,-730.35,0.00014246,2]
[352038730,1738894242559,-151.0,0.00014246,2]
[352038732,1738894242569,-500.0,0.00014246,2]
[352038734,1738894242579,-372.07485,0.00014246,2]
[352038736,1738894242588,-372.07485,0.00014246,2]
[352038738,1738894242597,-1457.57,0.00014246,2]
[352038741,1738894242607,-892.67,0.00014246,2]
[352038744,1738894242616,-500.0,0.00014246,2]
[352038747,1738894242625,-500.0,0.00014246,2]
[352038751,1738894242635,-500.0,0.00014246,2]
[352038754,1738894242645,-624.38642274,0.00014246,2]
[352038757,1738894242654,-374.81009599,0.00014246,2]
[352038760,1738894242665,-500.0,0.00014246,2]
[352038763,1738894242675,-5439.96,0.00014246,2]
[352038766,1738894242685,-1165.22,0.00014246,2]
[352038769,1738894242694,-562.7,0.00014246,2]
[352038771,1738894242704,-937.9,0.00014246,2]
[352038774,1738894242713,-151.0,0.00014246,2]
[352038777,1738894242723,-151.0,0.00014246,2]
[352038780,1738894242734,-151.0,0.00014246,2]
[352038783,1738894242743,-500.0,0.00014246,2]
[352038786,1738894242753,-4320.87,0.00014246,2]
[352038789,1738894242763,-151.0,0.00014246,2]
[352038792,1738894242773,-635.81,0.00014246,2]
[352038794,1738894242783,-151.0,0.00014246,2]
[352038796,1738894242792,-151.431403,0.00014246,2]
[352038798,1738894242801,-321.36303747,0.00014268,2]
[352038800,1738894242811,-10000.0,0.000143,2]
[352038803,1738894242821,-244.821022,0.000143,2]
[352038804,1738894242831,-151.0,0.000143,2]
[352038806,1738894242840,-151.0,0.000143,2]
[352038809,1738894242849,-1022.081168,0.00014355,2]
[352038811,1738894242859,-619.4,0.00014383,2]
[352038813,1738894242868,-500.0,0.00014383,2]
[352038815,1738894242877,-249.863142,0.00014383,2]
[352038817,1738894242887,-249.863142,0.00014383,2]
[352038818,1738894242896,-151.0,0.00014383,2]
[352038820,1738894242906,-1056.9,0.00014383,2]
[352038823,1738894242920,-151.0,0.00014383,2]
[352038825,1738894242939,-151.0,0.00014383,2]
[352038827,1738894242949,-500.0,0.00014383,2]
[352038829,1738894242959,-756.380816,0.00014383,2]
[352038831,1738894242969,-756.380816,0.00014383,2]
[352038832,1738894242979,-151.0,0.00014383,2]
[352038834,1738894242989,-184.226481,0.00014383,2]
[352038837,1738894242999,-500.0,0.00014383,2]
[352038839,1738894243009,-153.166931,0.00014383,2]
[352038841,1738894243018,-154.164485,0.00014383,2]
[352038843,1738894243027,-500.0,0.00014383,2]
[352038844,1738894243037,-569.82,0.00014383,2]
[352038846,1738894243047,-730.35,0.00014383,2]
[352038848,1738894243057,-500.0,0.00014383,2]
[352038851,1738894243067,-1457.57,0.00014383,2]
[352038853,1738894243076,-273.268797,0.00014383,2]
[352038855,1738894243086,-159.333615,0.00014383,2]
[352038857,1738894243096,-892.67,0.00014383,2]
[352038859,1738894243107,-159.333615,0.00014383,2]
[352038861,1738894243117,-151.0,0.00014383,2]
[352038863,1738894243127,-151.0,0.00014383,2]
[352038865,1738894243136,-151.0,0.00014383,2]
[352038867,1738894243146,-500.0,0.00014383,2]
[352038869,1738894243156,-151.0,0.00014383,2]
[352038871,1738894243171,-647.48451457,0.00014383,2]
[352038872,1738894243181,-500.0,0.00014383,2]
[352038874,1738894243190,-151.0,0.00014383,2]
[352038876,1738894243200,-500.0,0.00014383,2]
[352038878,1738894243213,-5439.96,0.00014383,2]
[352038880,1738894243223,-1165.22,0.00014383,2]
[352038882,1738894243232,-562.7,0.00014383,2]
[352038884,1738894243243,-937.9,0.00014383,2]
[352038886,1738894243252,-151.0,0.00014383,2]
[352038888,1738894243262,-151.0,0.00014383,2]
[352038890,1738894243271,-151.0,0.00014383,2]
[352038892,1738894243281,-500.0,0.00014383,2]
[352038894,1738894243291,-4320.87,0.00014383,2]
[352038896,1738894243300,-635.81,0.00014383,2]
[352038898,1738894243309,-185.15900447,0.00014384,2]
[352038900,1738894243319,-798.67595127,0.000144,2]
[352038902,1738894243329,-151.0,0.000144,2]
[352038904,1738894243339,-151.0,0.000144,2]
[352038906,1738894243349,-151.0,0.000144,2]
[352038908,1738894243359,-48987.47828276,0.000144,2]
[352038910,1738894243369,-321.36303747,0.000144,2]
[352038913,1738894243379,-151.0,0.000144,2]
[352038916,1738894243389,-151.0,0.000144,2]
[352038919,1738894243399,-151.0,0.000144,2]
[352038922,1738894243408,-372.07485,0.000144,2]
[352038926,1738894243422,-372.07485,0.000144,2]
[352038929,1738894243433,-159.333615,0.000144,2]
[352038932,1738894243442,-159.333615,0.000144,2]
[352038935,1738894243452,-151.0,0.000144,2]
[352038938,1738894243461,-151.0,0.000144,2]
[352038940,1738894243471,-151.0,0.000144,2]
[352038944,1738894243481,-152.353619,0.000144,2]
[352038946,1738894243491,-151.0,0.000144,2]
[352038949,1738894243500,-151.0,0.000144,2]
[352038952,1738894243509,-151.0,0.000144,2]
[352038955,1738894243518,-202.977414,0.000144,2]
[352038957,1738894243528,-324.17114388,0.0001442,2]
[352038959,1738894243537,-324.17114388,0.0001442,2]
[352038961,1738894243546,-324.17114388,0.0001442,2]
[352038963,1738894243555,-324.17114388,0.0001442,2]
[352038965,1738894243564,-324.17114388,0.0001442,2]
[352038967,1738894243574,-324.17114388,0.0001442,2]
[352038969,1738894243583,-324.17114388,0.0001442,2]
[352038971,1738894243592,-324.17114388,0.0001442,2]
[352038973,1738894243602,-324.17114388,0.0001442,2]
[352038975,1738894243611,-324.17114388,0.0001442,2]
[352038977,1738894243620,-324.17114388,0.0001442,2]
[352038979,1738894243629,-324.17114388,0.0001442,2]
[352038981,1738894243639,-324.17114388,0.0001442,2]
[352038983,1738894243649,-324.17114388,0.0001442,2]
[352038985,1738894243658,-324.17114388,0.0001442,2]
[352038987,1738894243672,-324.17114388,0.0001442,2]
[352038989,1738894243681,-324.17114388,0.0001442,2]
[352038991,1738894243691,-324.17114388,0.0001442,2]
[352038993,1738894243700,-324.17114388,0.0001442,2]
[352038995,1738894243710,-324.17,0.0001442,2]
[352038997,1738894243720,-153.03694,0.0001442,2]
[352038999,1738894243730,-151.471123,0.0001442,2]
[352039001,1738894243739,-151.0,0.0001442,2]
[352039003,1738894243749,-151.0,0.0001442,2]
[352039005,1738894243759,-151.0,0.0001442,2]
[352039007,1738894243769,-403.14,0.00014435,2]
[352039009,1738894243778,-327.0,0.0001447,2]
[352039011,1738894243787,-500.75693173,0.00014473,2]
[352039013,1738894243797,-500.0,0.00014473,2]
[352039015,1738894243807,-500.0,0.00014473,2]
[352039017,1738894243816,-646.80990526,0.00014473,2]
[352039019,1738894243826,-500.0,0.00014473,2]
[352039021,1738894243837,-500.0,0.00014473,2]
[352039023,1738894243846,-567.07060092,0.00014473,2]
[352039025,1738894243856,-500.0,0.00014473,2]
[352039027,1738894243866,-395.72574877,0.00014473,2]
[352039029,1738894243875,-500.0,0.00014473,2]
[352039031,1738894243884,-500.0,0.00014473,2]
[352039033,1738894243894,-415.41511657,0.00014473,2]
[352039035,1738894243903,-251.96210337,0.00014473,2]
[352039037,1738894243915,-500.0,0.00014473,2]
[352039039,1738894243924,-500.0,0.00014473,2]
[352039041,1738894243934,-500.0,0.00014473,2]
[352039043,1738894243943,-500.0,0.00014473,2]
[352039045,1738894243953,-152.650767,0.00014473,2]
[352039047,1738894243962,-191.363553,0.00014473,2]
[352039049,1738894243971,-191.363553,0.00014473,2]
[352039051,1738894243980,-440.142385,0.00014473,2]
[352039052,1738894243990,-440.142385,0.00014473,2]
[352039054,1738894243999,-2278.21,0.00014499,2]
[352039056,1738894244009,-284.4583684,0.00014499,2]
[352039058,1738894244018,-44122.1343056,0.000145,2]
[352039085,1738894244277,-509.78486218,0.00013698,2]
[352039087,1738894244287,-75840.3718065,0.000145,2]
[352039159,1738894246295,-300.0,0.00014245,2]
[352039163,1738894246370,-200.0,0.00014245,2]
[352039165,1738894246380,-275.02562953,0.00014245,2]
[352039167,1738894246390,-500.0,0.00014245,2]
[352039169,1738894246400,-114519.73917793,0.000145,2]
[352039175,1738894349620,518.23733397,0.00011505,2]
[352039176,1738894894076,293.5414101,0.0001201,2]
[352039182,1738895223036,200.0,0.0001201,3]
[352039183,1738895228478,200.0,0.0001201,4]
[352039184,1738895230136,-300.0,0.00012731,2]
[352039185,1738895230162,-17329.33607387,0.00012732,2]
[352039186,1738895232677,200.0,0.0001201,3]
[352039187,1738895251118,-6262.80269038,0.00012732,2]
[352039188,1738895252100,-1307.86123575,0.00012732,2]
[352039189,1738895252122,-854.32434594,0.000129,2]
[352039190,1738895252148,-291.35751377,0.00012941,2]
[352039191,1738895252170,-1820.52534115,0.00012998,2]
[352039192,1738895252191,-228.87520627,0.00012999,2]
[352039193,1738895252211,-500.0,0.00012999,2]
[352039194,1738895252232,-209.61686024,0.00012999,2]
[352039195,1738895252253,-500.0,0.00012999,2]
[352039196,1738895252274,-611.95330326,0.00012999,2]
[352039197,1738895252296,-500.0,0.00012999,2]
[352039198,1738895252317,-500.0,0.00012999,2]
[352039199,1738895252338,-282.97522015,0.00012999,2]
[352039211,1738895340908,500.0,0.00011505,2]
[352039212,1738895373119,-747.53380275,0.00012941,2]
[352039213,1738895373141,-145.17713778,0.00012998,2]
[352039214,1738895414812,185.0,0.0001201,3]
[352039215,1738895429873,186.76924155,0.0001201,3]
[352039294,1738895432391,-301.67760062,0.00012992,2]
[352039296,1738895432401,-300.0,0.00012998,2]
[352039298,1738895432411,-217.02477985,0.00012999,2]
[352039300,1738895432420,-62.92766553,0.00012999,2]
[352039303,1738895432431,-437.07233447,0.00012999,2]
[352039305,1738895432441,-500.0,0.00012999,2]
[352039307,1738895432451,-512.23200501,0.00012999,2]
[352039309,1738895432460,-480.32194321,0.00012999,2]
[352039311,1738895432469,-543.05869437,0.00012999,2]
[352039313,1738895432478,-500.0,0.00012999,2]
[352039315,1738895432487,-500.0,0.00012999,2]
[352039317,1738895432496,-500.0,0.00012999,2]
[352039319,1738895432505,-500.0,0.00012999,2]
[352039321,1738895432514,-163.74275972,0.00012999,2]
[352039323,1738895432527,-336.25724028,0.00012999,2]
[352039325,1738895432536,-500.0,0.00012999,2]
[352039327,1738895432549,-500.0,0.00012999,2]
[352039329,1738895432560,-500.0,0.00012999,2]
[352039331,1738895432572,-500.0,0.00012999,2]
[352039333,1738895432582,-259.46893888,0.00012999,2]
[352039335,1738895432591,-500.0,0.00012999,2]
[352039337,1738895432600,-500.0,0.00012999,2]
[352039339,1738895432610,-500.0,0.00012999,2]
[352039342,1738895432619,-500.0,0.00012999,2]
[352039344,1738895432629,-214.54345994,0.00012999,2]
[352039346,1738895432638,-500.0,0.00012999,2]
[352039347,1738895432647,-500.0,0.00012999,2]
[352039350,1738895432659,-500.0,0.00012999,2]
[352039352,1738895432672,-500.0,0.00012999,2]
[352039354,1738895432682,-188.97547771,0.00012999,2]
[352039356,1738895432691,-500.0,0.00012999,2]
[352039358,1738895432700,-500.0,0.00012999,2]
[352039360,1738895432709,-500.0,0.00012999,2]
[352039362,1738895432718,-500.0,0.00012999,2]
[352039364,1738895432728,-500.0,0.00012999,2]
[352039366,1738895432737,-500.0,0.00012999,2]
[352039368,1738895432747,-500.0,0.00012999,2]
[352039370,1738895432756,-500.0,0.00012999,2]
[352039372,1738895432765,-500.0,0.00012999,2]
[352039374,1738895432774,-500.0,0.00012999,2]
[352039376,1738895432784,-500.0,0.00012999,2]
[352039378,1738895432793,-500.0,0.00012999,2]
[352039380,1738895432803,-500.0,0.00012999,2]
[352039382,1738895432812,-500.0,0.00012999,2]
[352039384,1738895432821,-500.0,0.00012999,2]
[352039386,1738895432830,-500.0,0.00012999,2]
[352039388,1738895432840,-500.0,0.00012999,2]
[352039390,1738895432850,-500.0,0.00012999,2]
[352039393,1738895432860,-250.0,0.00012999,2]
[352039395,1738895432870,-500.0,0.00012999,2]
[352039397,1738895432880,-500.0,0.00012999,2]
[352039399,1738895432890,-218.32869543,0.00012999,2]
[352039401,1738895432900,-500.0,0.00012999,2]
[352039403,1738895432912,-500.0,0.00012999,2]
[352039405,1738895432922,-500.0,0.00012999,2]
[352039407,1738895432932,-226.89013169,0.00012999,2]
[352039409,1738895432942,-500.0,0.00012999,2]
[352039411,1738895432952,-500.0,0.00012999,2]
[352039413,1738895432961,-500.0,0.00012999,2]
[352039415,1738895432971,-500.0,0.00012999,2]
[352039417,1738895432981,-34379.66321063,0.00013,2]
[352039926,1738895438309,-110999.62321067,0.00013,2]
[352039951,1738895438543,-973.50731695,0.00013,2]
[352039989,1738895438943,-1958.81511932,0.00013,2]
[352039991,1738895438955,-516186.46650901,0.00013,2]
[352039993,1738895438964,-327.2938943,0.00013041,2]
[352039995,1738895438974,-500.0,0.00013151,2]
[352039997,1738895438984,-1000.0,0.00013425,2]
[352039999,1738895438993,-503.67002889,0.00013583,2]
[352040001,1738895439003,-747.53380268,0.00013649,2]
[352040003,1738895439012,-500.0,0.00013694,2]
[352040005,1738895439022,-500.72901716,0.00013694,2]
[352040007,1738895439031,-500.0,0.00013698,2]
[352040009,1738895439041,-500.0,0.00013698,2]
[352040011,1738895439050,-500.0,0.00013698,2]
[352040013,1738895439059,-512.55175563,0.00013698,2]
[352040015,1738895439068,-500.0,0.00013698,2]
[352040017,1738895439078,-501.93296659,0.00013698,2]
[352040019,1738895439087,-502.58185862,0.00013698,2]
[352040021,1738895439096,-500.0,0.00013698,2]
[352040023,1738895439106,-500.0,0.00013698,2]
[352040025,1738895439115,-500.0,0.00013698,2]
[352040027,1738895439124,-500.0,0.00013698,2]
[352040029,1738895439134,-500.0,0.00013698,2]
[352040031,1738895439143,-501.36327129,0.00013698,2]
[352040033,1738895439152,-500.0,0.00013698,2]
[352040035,1738895439162,-501.92033558,0.00013698,2]
[352040037,1738895439171,-510.96599223,0.00013698,2]
[352040039,1738895439180,-500.0,0.00013698,2]
[352040041,1738895439189,-500.0,0.00013698,2]
[352040043,1738895439199,-500.0,0.00013698,2]
[352040045,1738895439208,-500.0,0.00013698,2]
[352040047,1738895439217,-500.0,0.00013698,2]
[352040049,1738895439228,-500.0,0.00013698,2]
[352040051,1738895439237,-502.62702962,0.00013698,2]
[352040053,1738895439246,-501.6132321,0.00013698,2]
[352040055,1738895439255,-504.10814525,0.00013698,2]
[352040057,1738895439264,-502.42261787,0.00013698,2]
[352040060,1738895439274,-504.28871981,0.00013698,2]
[352040061,1738895439283,-503.69229465,0.00013698,2]
[352040064,1738895439293,-500.0,0.00013698,2]
[352040066,1738895439302,-504.69941932,0.00013698,2]
[352040068,1738895439311,-500.0,0.00013698,2]
[352040070,1738895439320,-469.42836379,0.00013698,2]
[352040071,1738895439329,-501.86280008,0.00013698,2]
[352040073,1738895439339,-500.0,0.00013698,2]
[352040075,1738895439348,-500.0,0.00013698,2]
[352040077,1738895439357,-500.0,0.00013698,2]
[352040079,1738895439368,-500.0,0.00013698,2]
[352040081,1738895439378,-500.0,0.00013698,2]
[352040084,1738895439388,-500.0,0.00013698,2]
[352040085,1738895439397,-501.7175172,0.00013698,2]
[352040088,1738895439407,-502.51639516,0.00013698,2]
[352040090,1738895439416,-500.0,0.00013698,2]
[352040091,1738895439425,-500.0,0.00013698,2]
[352040093,1738895439435,-500.0,0.00013698,2]
[352040095,1738895439444,-500.9016661,0.00013698,2]
[352040098,1738895439454,-500.0,0.00013698,2]
[352040100,1738895439463,-525.92290262,0.00013698,2]
[352040102,1738895439472,-500.0,0.00013698,2]
[352040104,1738895439481,-500.0,0.00013698,2]
[352040106,1738895439490,-500.0,0.00013698,2]
[352040108,1738895439500,-502.4606202,0.00013698,2]
[352040110,1738895439509,-840.63,0.00013698,2]
[352040111,1738895439518,-504.62353445,0.00013698,2]
[352040113,1738895439528,-260.42653711,0.00013698,2]
[352040116,1738895439537,-503.17844166,0.00013698,2]
[352040118,1738895439547,-500.0,0.00013698,2]
[352040120,1738895439557,-500.0,0.00013698,2]
[352040121,1738895439570,-500.0,0.00013698,2]
[352040124,1738895439580,-501.96749212,0.00013698,2]
[352040126,1738895439589,-502.5807354,0.00013698,2]
[352040128,1738895439599,-500.0,0.00013698,2]
[352040130,1738895439611,-500.0,0.00013698,2]
[352040131,1738895439620,-500.0,0.00013698,2]
[352040133,1738895439630,-500.0,0.00013698,2]
[352040135,1738895439640,-501.45354141,0.00013698,2]
[352040138,1738895439650,-504.08081738,0.00013698,2]
[352040140,1738895439660,-346.60732509,0.00013698,2]
[352040142,1738895439670,-481.31445863,0.00013698,2]
[352040144,1738895439679,-500.0,0.00013698,2]
[352040146,1738895439688,-500.0,0.00013698,2]
[352040148,1738895439698,-500.0,0.00013698,2]
[352040150,1738895439707,-501.57390669,0.00013698,2]
[352040152,1738895439716,-500.0,0.00013698,2]
[352040154,1738895439726,-500.0,0.00013698,2]
[352040156,1738895439735,-500.0,0.00013698,2]
[352040158,1738895439745,-512.06,0.00013698,2]
[352040160,1738895439754,-501.60152064,0.00013698,2]
[352040162,1738895439763,-500.0,0.00013698,2]
[352040164,1738895439773,-500.0,0.00013698,2]
[352040166,1738895439782,-500.0,0.00013698,2]
[352040168,1738895439791,-502.3641626,0.00013698,2]
[352040170,1738895439801,-502.725926,0.00013698,2]
[352040172,1738895439810,-500.0,0.00013698,2]
[352040174,1738895439819,-501.26706587,0.00013698,2]
[352040176,1738895439828,-501.83620821,0.00013698,2]
[352040178,1738895439838,-500.0,0.00013698,2]
[352040180,1738895439847,-500.0,0.00013698,2]
[352040182,1738895439856,-500.0,0.00013698,2]
[352040184,1738895439865,-502.56812229,0.00013698,2]
[352040186,1738895439875,-576.49172729,0.00013698,2]
[352040188,1738895439889,-500.0,0.00013698,2]
[352040190,1738895439907,-500.0,0.00013698,2]
[352040192,1738895439919,-501.59734077,0.00013698,2]
[352040194,1738895439929,-500.0,0.00013698,2]
[352040196,1738895439938,-500.0,0.00013698,2]
[352040198,1738895439948,-500.0,0.00013698,2]
[352040200,1738895439957,-502.6445118,0.00013698,2]
[352040202,1738895439966,-501.74331293,0.00013698,2]
[352040204,1738895439975,-500.0,0.00013698,2]
[352040206,1738895439985,-500.0,0.00013698,2]
[352040208,1738895439994,-538.53685066,0.00013698,2]
[352040210,1738895440004,-501.15657117,0.00013698,2]
[352040212,1738895440013,-507.27022482,0.00013698,2]
[352040214,1738895440022,-500.0,0.00013698,2]
[352040216,1738895440031,-580.82,0.00013698,2]
[352040218,1738895440040,-500.0,0.00013698,2]
[352040220,1738895440050,-500.0,0.00013698,2]
[352040222,1738895440059,-500.0,0.00013698,2]
[352040224,1738895440069,-500.0,0.00013698,2]
[352040226,1738895440078,-500.0,0.00013698,2]
[352040228,1738895440087,-500.0,0.00013698,2]
[352040230,1738895440096,-244.29571201,0.00013698,2]
[352040232,1738895440106,-500.0,0.00013698,2]
[352040234,1738895440116,-500.0,0.00013698,2]
[352040236,1738895440125,-500.0,0.00013698,2]
[352040238,1738895440134,-507.06486094,0.00013698,2]
[352040240,1738895440143,-501.05141148,0.00013698,2]
[352040242,1738895440152,-480.0,0.00013698,2]
[352040244,1738895440161,-500.0,0.00013698,2]
[352040246,1738895440170,-500.0,0.00013698,2]
[352040248,1738895440179,-500.0,0.00013698,2]
[352040249,1738895440189,-500.0,0.00013698,2]
[352040251,1738895440198,-500.0,0.00013698,2]
[352040254,1738895440207,-504.96767484,0.00013698,2]
[352040256,1738895440217,-549.4,0.00013698,2]
[352040258,1738895440227,-500.0,0.00013698,2]
[352040259,1738895440237,-500.0,0.00013698,2]
[352040262,1738895440246,-500.0,0.00013698,2]
[352040264,1738895440256,-559.40783653,0.00013698,2]
[352040266,1738895440266,-709.92,0.00013698,2]
[352040268,1738895440275,-500.0,0.00013698,2]
[352040270,1738895440286,-502.39802918,0.00013698,2]
[352040272,1738895440295,-500.0,0.00013698,2]
[352040274,1738895440305,-500.0,0.00013698,2]
[352040276,1738895440315,-500.0,0.00013698,2]
[352040278,1738895440324,-500.0,0.00013698,2]
[352040280,1738895440334,-378.67856845,0.00013698,2]
[352040282,1738895440344,-500.0,0.00013698,2]
[352040284,1738895440354,-383.60205076,0.00013698,2]
[352040285,1738895440363,-1225.24,0.00013698,2]
[352040288,1738895440373,-500.0,0.00013698,2]
[352040290,1738895440383,-503.15495327,0.00013698,2]
[352040292,1738895440392,-926.57,0.00013698,2]
[352040293,1738895440401,-500.0,0.00013698,2]
[352040296,1738895440412,-500.0,0.00013698,2]
[352040298,1738895440425,-500.0,0.00013698,2]
[352040300,1738895440435,-500.0,0.00013698,2]
[352040302,1738895440445,-500.0,0.00013698,2]
[352040304,1738895440454,-4325.84,0.00013698,2]
[352040306,1738895440463,-500.0,0.00013698,2]
[352040308,1738895440472,-570.94226595,0.00013698,2]
[352040310,1738895440481,-500.0,0.00013698,2]
[352040312,1738895440490,-500.0,0.00013698,2]
[352040314,1738895440500,-500.0,0.00013698,2]
[352040316,1738895440509,-501.70580386,0.00013698,2]
[352040318,1738895440519,-358.39100061,0.00013698,2]
[352040320,1738895440528,-500.0,0.00013698,2]
[352040322,1738895440537,-500.0,0.00013698,2]
[352040324,1738895440547,-500.0,0.00013698,2]
[352040326,1738895440556,-500.0,0.00013698,2]
[352040328,1738895440568,-500.0,0.00013698,2]
[352040330,1738895440577,-500.0,0.00013698,2]
[352040332,1738895440586,-500.0,0.00013698,2]
[352040334,1738895440595,-500.0,0.00013698,2]
[352040336,1738895440604,-500.0,0.00013698,2]
[352040338,1738895440613,-500.0,0.00013698,2]
[352040340,1738895440623,-500.0,0.00013698,2]
[352040342,1738895440632,-503.13313021,0.00013698,2]
[352040344,1738895440643,-500.75167552,0.00013698,2]
[352040346,1738895440653,-500.0,0.00013698,2]
[352040348,1738895440665,-500.0,0.00013698,2]
[352040350,1738895440675,-500.0,0.00013698,2]
[352040352,1738895440684,-500.0,0.00013698,2]
[352040354,1738895440693,-503.41753584,0.00013698,2]
[352040356,1738895440702,-501.04516685,0.00013698,2]
[352040358,1738895440711,-3366.22,0.00013698,2]
[352040360,1738895440721,-500.0,0.00013698,2]
[352040362,1738895440730,-501.00492072,0.00013698,2]
[352040364,1738895440739,-500.0,0.00013698,2]
[352040366,1738895440748,-643.85573182,0.00013698,2]
[352040368,1738895440757,-745.97,0.00013698,2]
[352040370,1738895440766,-500.0,0.00013698,2]
[352040372,1738895440775,-251.1796396,0.00013698,2]
[352040374,1738895440785,-500.0,0.00013698,2]
[352040376,1738895440794,-500.0,0.00013698,2]
[352040378,1738895440803,-500.0,0.00013698,2]
[352040380,1738895440812,-500.0,0.00013698,2]
[352040382,1738895440821,-517.39687289,0.00013698,2]
[352040384,1738895440830,-500.40615099,0.00013698,2]
[352040386,1738895440839,-270.94999317,0.00013698,2]
[352040388,1738895440850,-500.0,0.00013698,2]
[352040390,1738895440858,-503.94222141,0.00013698,2]
[352040392,1738895440867,-512.0178779,0.00013698,2]
[352040394,1738895440877,-500.0,0.00013698,2]
[352040396,1738895440886,-500.0,0.00013698,2]
[352040398,1738895440895,-500.0,0.00013698,2]
[352040400,1738895440904,-506.87,0.00013698,2]
[352040402,1738895440914,-500.0,0.00013698,2]
[352040404,1738895440923,-505.22785913,0.00013698,2]
[352040406,1738895440932,-503.63500703,0.00013698,2]
[352040408,1738895440941,-500.0,0.00013698,2]
[352040410,1738895440950,-500.0,0.00013698,2]
[352040412,1738895440959,-500.0,0.00013698,2]
[352040414,1738895440969,-500.0,0.00013698,2]
[352040416,1738895440977,-515.41015551,0.00013698,2]
[352040418,1738895440986,-503.95116198,0.00013698,2]
[352040420,1738895440996,-333.276879,0.00013699,2]
[352040422,1738895441005,-1500.0,0.00013699,2]
[352040423,1738895441013,-500.0,0.00013699,2]
[352040426,1738895441023,-500.0,0.00013699,2]
[352040427,1738895441032,-500.0,0.00013699,2]
[352040429,1738895441042,-500.0,0.00013699,2]
[352040431,1738895441052,-500.0,0.00013699,2]
[352040434,1738895441062,-500.0,0.00013699,2]